Workbook

Sheet Меню младшие 1-4 кл
B12: Согласовано | I12: Разработано и утвеждено
B13: Руководитель общеобразовательного учреждения | I13: Директор ООО "АБК-ПЭЙМЕНТ"
B15: ________________________ | I15: ________________Р.Р. Рахматуллин
B20: Примерное цикличное двенадцатидневное меню
B21: Для организации бесплатного горячего питания (горячих завтраков) для обучающихся начальных классов
B22: общеобразовательных организаций Республики Татарстан
B50: ПРИМЕРНОЕ ДВУХНЕДЕЛЬНОЕ МЕНЮ ДЛЯ ОБУЧАЮЩИХСЯ В ОБЩЕОБРАЗОВАТЕЛЬНЫХ ОРГАНИЗАЦИЯХ С 1 по 4 КЛАССЫ
J51: сезон (осенне-зимний)
A52: № рецептуры | B52: Наименование блюд | C52: Выход,г | D52: Белки, г | E52: Жиры, г | F52: Углеводы, г | G52: Калорийность, ккал | H52: Витамин B1, мг | I52: Витамин С, мг | J52: Витамин А, мг | K52: Витамин Е, мг | L52: Ca, мг | M52: P, мг | N52: Mg, мг | O52: Fe, мг
B53: 1-ая неделя
B54: 1 день
A55: ТТК | B55: Салат из моркови с яблоками | C55: 60 | D55: 0.64 | E55: 3.01 | F55: 5.11 | G55: 50.91 | H55: 0.03 | I55: 2.63 | J55: 0.00 | K55: 0.21 | L55: 14.40 | M55: 26.72 | N55: 18.23 | O55: 0.64
A56: ТТК | B56: Котлета из мяса птицы с макаронными изделиями отварными, с маслом сливочным | C56: 75/150/5 | D56: 11.45 | E56: 12.46 | F56: 31.32 | G56: 289.95 | H56: 0.10 | I56: 0.50 | J56: 23.90 | K56: 4.80 | L56: 31.70 | M56: 147.63 | N56: 38.18 | O56: 2.08
A57: №349 Сбор.рец. На прод-ию для обуч. Во всех образ.учреж-Дели 2017 | B57: Компот из сухофруктов (75С) | C57: 200 | D57: 0.66 | E57: 0.09 | F57: 22.03 | G57: 92.80 | H57: 0.02 | I57: 0.73 | J57: 0.00 | K57: 0.51 | L57: 32.18 | M57: 23.44 | N57: 17.46 | O57: 0.67
A58: Хим.состав и калорийность российских продуктов питания,табл 6, стр 144 , 2012 Дели + | B58: Хлеб ржаной | C58: 30 | D58: 1.98 | E58: 0.36 | F58: 11.88 | G58: 59.40 | H58: 0.05 | I58: 0.00 | J58: 0.00 | K58: 0.42 | L58: 8.70 | M58: 45.00 | N58: 14.10 | O58: 1.17
B59: Итого: | C59: 520 | D59: =SUM(D55:D58) -> 14.73 | E59: =SUM(E55:E58) -> 15.92 | F59: 70.35 | G59: 493.06 | H59: 0.20 | I59: 3.85 | J59: 23.90 | K59: 5.93 | L59: 86.97 | M59: 242.79 | N59: 87.97 | O59: 4.55 | P59: 20%
B61: 2 день
A62: Хим.состав и калорийность российских продуктов питания табл 9 стр 184 , 2012 Дели + | B62: Плоды и ягоды свежие (яблоки) | C62: 100 | D62: 0.40 | E62: 0.40 | F62: 9.80 | G62: 47.00 | H62: 0.03 | I62: 10.00 | K62: 0.20 | L62: 16.00 | M62: 11.00 | N62: 9.00 | O62: 2.20
A63: ТТК | B63: Сырники из творога с кашей молочной "Дружба" с маслом сливочным | C63: 60/150/5 | D63: 10.55 | E63: 11.85 | F63: 39.40 | G63: 324.45 | H63: 0.11 | I63: 0.88 | J63: 65.30 | K63: 1.83 | L63: 314.60 | M63: 252.49 | N63: 41.76 | O63: 1.01
A64: № 379 Сбор.рец. На прод-ию для обуч. Во всех образ.учреж-Дели 2017 | B64: Кофейный напиток с молоком | C64: 200 | D64: 3.2 | E64: 2.7 | F64: 6.0 | G64: 60.7 | H64: 0.0 | I64: 1.3 | J64: 20.0 | K64: 0.0 | L64: 125.8 | M64: 90.0 | N64: 14.0 | O64: 0.1
A65: Хим.состав и калорийность российских продуктов питания,табл 6, стр 144 , 2012 Дели + | B65: Хлеб ржаной | C65: 30 | D65: 1.98 | E65: 0.36 | F65: 11.88 | G65: 59.40 | H65: 0.05 | I65: 0.00 | J65: 0.00 | K65: 0.42 | L65: 8.70 | M65: 45.00 | N65: 14.10 | O65: 1.17
B66: Итого: | C66: =C62+215+200+C65 -> 545 | D66: =SUM(D62:D65) -> 16.10 | E66: =SUM(E62:E65) -> 15.29 | F66: 67.08 | G66: 491.55 | H66: 0.24 | I66: 12.18 | J66: 85.30 | K66: 2.45 | L66: 465.08 | M66: 398.49 | N66: 78.86 | O66: 4.51 | P66: 20%
B69: 3 день
A70: № 15 Сбор.рец. На прод-ию для обуч. Во всех образ.учреж-Дели -2017 | B70: Сыр порционно | C70: 10 | D70: 2.63 | E70: 2.66 | F70: 0.00 | G70: 34.33 | H70: 0.00 | I70: 0.07 | J70: 21.00 | K70: 0.04 | L70: 100.00 | M70: 60.00 | N70: 5.50 | O70: 0.07
A71: № 260 Сбор.рец. На прод-ию для обуч. Во всех образ.учреж-Дели -2017 | B71: Гуляш из говядины | C71: 50/50 | D71: 10.39 | E71: 14.79 | F71: 10.30 | G71: 221.00 | H71: 0.03 | I71: 0.92 | K71: 2.61 | L71: 61.81 | M71: 154.15 | N71: 22.03 | O71: 3.06
A72: № 171 Сбор.рец. На прод-ию для обуч. Во всех образ.учреж-Дели 2017 | B72: Каша гречневая рассыпчатая | C72: 150 | D72: 3.77 | E72: 2.29 | F72: 39.72 | G72: 214.00 | H72: 0.21 | I72: 0.00 | J72: 0.00 | K72: 0.40 | L72: 23.99 | M72: 207.35 | N72: 140.52 | O72: 4.71
A73: № 377 Сбор.рец. На прод-ию для обуч. Во всех образ.учреж-Дели 2017 | B73: Чай с сахаром, с лимоном | C73: 185/10/5 | D73: 0.11 | E73: 0.02 | F73: 10.15 | G73: 41.32 | H73: -0.00 | I73: 2.03 | J73: 0.00 | K73: 0.01 | L73: 13.25 | M73: 3.96 | N73: 2.16 | O73: 0.33
A74: Хим.состав и калорийность российских продуктов питания табл 6 стр 134 , 2012 Дели + | B74: Хлеб ржаной | C74: 50 | D74: 3.30 | E74: 0.60 | F74: 19.80 | G74: 99.00 | H74: 0.09 | I74: 0.00 | J74: 0.00 | K74: 0.70 | L74: 14.50 | M74: 75.00 | N74: 23.50 | O74: 1.95
B75: Итого: | C75: 510 | D75: =SUM(D70:D74) -> 20.20 | E75: =SUM(E70:E74) -> 20.36 | F75: 79.97 | G75: 609.65 | H75: 0.33 | I75: 3.02 | J75: 21.00 | K75: 3.76 | L75: 213.55 | M75: 500.46 | N75: 193.71 | O75: 10.12 | P75: 25%
B82: 4 день
A83: ТТК Хим.состав и калорийность российских продуктов питания,табл 8, стр 168 , 2012 Дели +, | B83: Свекла отварная дольками | C83: 60 | D83: 1.08 | E83: 0.06 | F83: 5.88 | G83: 28.80 | H83: 0.01 | I83: 5.34 | J83: 0.00 | K83: 0.06 | L83: 27.00 | M83: 30.60 | N83: 15.60 | O83: 1.02
A84: ТТК | B84: Птица запеченная | C84: 100 | D84: 10.52 | E84: 12.43 | F84: 8.65 | G84: 192 | H84: 0.06 | I84: 1.28 | J84: 51.8 | K84: 0.8 | L84: 41.26 | M84: 216.4 | N84: 23.42 | O84: 1.78
A85: № 312 Сбор.рец. На прод-ию для обуч. Во всех образ.учреж-Дели -2017 | B85: Пюре картофельное с маслом сливочным | C85: 150/3 | D85: 3.08 | E85: 6.25 | F85: 20.47 | G85: 150.45 | H85: 0.14 | I85: 18.16 | J85: 8.00 | K85: 0.20 | L85: 37.46 | M85: 87.20 | N85: 27.75 | O85: 1.01
A86: №349 Сбор.рец. На прод-ию для обуч. Во всех образ.учреж-Дели 2017 | B86: Компот из сухофруктов (75С) | C86: 200 | D86: 0.66 | E86: 0.09 | F86: 22.03 | G86: 92.80 | H86: 0.02 | I86: 0.73 | J86: 0.00 | K86: 0.51 | L86: 32.18 | M86: 23.44 | N86: 17.46 | O86: 0.67
A87: Хим.состав и калорийность российских продуктов питания табл 6 стр 134 , 2012 Дели + | B87: Хлеб пшеничный | C87: 30 | D87: 2.28 | E87: 0.24 | F87: 14.76 | G87: 70.50 | H87: 0.03 | I87: 0.00 | J87: 0.00 | K87: 0.33 | L87: 6.00 | M87: 19.50 | N87: 4.20 | O87: 0.33
A88: Хим.состав и калорийность российских продуктов питания,табл 6, стр 144 , 2012 Дели + | B88: Хлеб ржаной | C88: 40 | D88: =D74*0.8 -> 2.64 | E88: =E74*0.8 -> 0.48 | F88: 15.84 | G88: 79.20 | H88: 0.07 | I88: 0.00 | J88: 0.00 | K88: 0.56 | L88: 11.60 | M88: 60.00 | N88: 18.80 | O88: 1.56
B89: Итого: | C89: 583 | D89: =SUM(D83:D88) -> 20.26 | E89: 19.55 | F89: 87.63 | G89: 613.75 | H89: 0.33 | I89: 25.51 | J89: 59.80 | K89: 2.46 | L89: 155.50 | M89: 437.14 | N89: 107.23 | O89: 6.37 | P89: 25%
B91: 5 день
A92: № 15 Сбор.рец. На прод-ию для обуч. Во всех образ.учреж-Дели 2017 | B92: Сыр порционно | C92: 15 | D92: 3.95 | E92: 3.99 | F92: 0.00 | G92: 51.50 | H92: 0.01 | I92: 0.11 | J92: 31.50 | K92: 0.06 | L92: 150.00 | M92: 90.00 | N92: 8.25 | O92: 0.11
A93: №279,331 Сбор.рец. На прод-ию для питания детей в дошк образоват учрежд-Дели 2017 | B93: Тефтели мясные в сметанно-томатном соусе | C93: 60/40 | D93: 7.284 | E93: 11.940 | F93: 8.360 | G93: 124 | H93: 0.048 | I93: 0.276 | J93: 29.620 | K93: 0.421 | L93: 20.726 | M93: 80.202 | N93: 15.521 | O93: 0.640
A94: № 203 Сбор.рец. На прод-ию для обуч. Во всех образ.учреж-Дели 2017 | B94: Макаронные изделия отварные с маслом сливочным | C94: 180/5 | D94: 5.10 | E94: 3.62 | F94: 31.96 | G94: 176.10 | H94: 0.06 | I94: 0.00 | J94: 12.00 | K94: 0.80 | L94: 11.91 | M94: 38.07 | N94: 8.62 | O94: 0.86
A95: ТТК | B95: Напиток из свежих фруктов (75С) | C95: 200 | D95: 0.34 | E95: 0.17 | F95: 21.46 | G95: 103.50 | H95: 0.02 | I95: 3.17 | J95: 0.00 | K95: 0.13 | L95: 16.67 | M95: 7.05 | N95: 7.78 | O95: 0.88
A96: Хим.состав и калорийность российских продуктов питания табл 6 стр 134 , 2012 Дели + | B96: Хлеб пшеничный | C96: 45 | D96: =D87*1.5 -> 3.42 | E96: 0.36 | F96: 22.14 | G96: 105.75 | H96: 0.05 | I96: 0.00 | J96: 0.00 | K96: 0.50 | L96: 9.00 | M96: 29.25 | N96: 6.30 | O96: 0.50
B97: Итого: | C97: 545 | D97: =SUM(D92:D96) -> 20.09 | E97: =SUM(E92:E96) -> 20.08 | F97: 83.92 | G97: 560.84 | H97: 0.18 | I97: 3.55 | J97: 73.12 | K97: 1.91 | L97: 208.31 | M97: 244.57 | N97: 46.47 | O97: 2.98 | P97: 25%
B99: 6 день
A100: № 47 Сбор.рец. На прод-ию для обуч. Во всех образ.учреж-Дели -2017 | B100: Салат из свежей капусты с морковью | C100: 80 | D100: 1.05 | E100: 2.60 | F100: 5.17 | G100: 48.32 | H100: 0.02 | I100: 13.68 | J100: 0.00 | K100: 6.71 | L100: 19.98 | M100: 22.65 | N100: 12.07 | O100: 0.37
A101: ТТК | B101: Биточки рыбные с рисом отварным рассыпчатыйм,с маслом сливочным | C101: 75/150/3 | D101: 12.93 | E101: 12.41 | F101: 43.12 | G101: 304.30 | H101: 0.08 | I101: 0.50 | J101: 15.90 | K101: 3.96 | L101: 41.00 | M101: 189.24 | N101: 44.95 | O101: 1.54
A102: № 377 Сбор.рец. На прод-ию для обуч. Во всех образ.учреж-Дели 2017 | B102: Чай с сахаром, с лимоном | C102: 185/10/5 | D102: 0.11 | E102: 0.02 | F102: 10.15 | G102: 41.32 | H102: -0.00 | I102: 2.03 | J102: 0.00 | K102: 0.01 | L102: 13.25 | M102: 3.96 | N102: 2.16 | O102: 0.33
A103: Хим.состав и калорийность российских продуктов питания,табл 6, стр 144 , 2012 Дели + | B103: Хлеб ржаной | C103: 30 | D103: 1.98 | E103: 0.36 | F103: 11.88 | G103: 59.40 | H103: 0.05 | I103: 0.00 | J103: 0.00 | K103: 0.42 | L103: 8.70 | M103: 45.00 | N103: 14.10 | O103: 1.17
B104: Итого: | C104: 538 | D104: =SUM(D100:D103) -> 16.08 | E104: =SUM(E100:E103) -> 15.39 | F104: 70.32 | G104: 453.34 | H104: 0.14 | I104: 16.20 | J104: 15.90 | K104: 11.10 | L104: 82.92 | M104: 260.85 | N104: 73.28 | O104: 3.41 | P104: 20%
B105: Итого за 6 дней 1 недели: | C105: =C59+C66+C75+C89+C97+C104 -> 3241 | D105: 107.4501 | E105: 106.5897 | F105: 459.272 | G105: 3222.193333 | H105: 1.415933333 | I105: 64.3051 | J105: 279.02 | K105: 27.6015 | L105: 1212.3175 | M105: 2084.28315 | N105: 587.5188 | O105: 31.9515
B107: 2-ая неделя
B120: 2-ая неделя
B121: 1 день
A122: ТТК | B122: Сырники из творога с кашей пшенной молочной с маслом сливочным | C122: 60/180/5 | D122: 16.02 | E122: 18.13 | F122: 42.98 | G122: 386.40 | H122: 0.13 | I122: 1.02 | J122: 67.52 | K122: 1.84 | L122: 344.24 | M122: 275.54 | N122: 47.35 | O122: 1.13
A123: № 376 Сбор.рец. На прод-ию для обуч. Во всех образ.учреж-Дели 2017 | B123: Чай "Витаминный" с шиповником | C123: 185/10/5 | D123: 0.24 | E123: 0.09 | F123: 12.43 | G123: 54.20 | H123: 0.00 | I123: 50.03 | J123: 0.00 | K123: 0.19 | L123: 13.95 | M123: 3.65 | N123: 2.25 | O123: 0.42
A124: Хим.состав и калорийность российских продуктов питания табл 6 стр 134 , 2012 Дели + | B124: Хлеб пшеничный | C124: 25 | D124: 1.90 | E124: 0.20 | F124: 12.30 | G124: 58.75 | H124: 0.03 | I124: 0.00 | J124: 0.00 | K124: 0.28 | L124: 5.00 | M124: 16.25 | N124: 3.50 | O124: 0.28
A125: Хим.состав и калорийность российских продуктов питания,табл 6, стр 144 , 2012 Дели + | B125: Хлеб ржаной | C125: 30 | D125: 1.98 | E125: 0.36 | F125: 11.88 | G125: 59.40 | H125: 0.05 | I125: 0.00 | J125: 0.00 | K125: 0.42 | L125: 8.70 | M125: 45.00 | N125: 14.10 | O125: 1.17
B126: Итого: | C126: 500 | D126: =SUM(D122:D125) -> 20.14 | E126: =SUM(E122:E125) -> 18.78 | F126: 79.59 | G126: 558.75 | H126: 0.21 | I126: 51.05 | J126: 67.52 | K126: 2.72 | L126: 371.89 | M126: 340.44 | N126: 67.20 | O126: 2.99 | P126: 25%
B129: 2 день
A130: № 52 Сбор.рец. На прод-ию для обуч. Во всех образ.учреж-Дели -2017 | B130: Салат из отварной свеклы | C130: 60 | D130: 0.84 | E130: 3.61 | F130: 4.96 | G130: 55.68 | H130: 0.01 | I130: 3.99 | J130: 0.00 | K130: 1.62 | L130: 21.28 | M130: 24.38 | N130: 12.42 | O130: 0.79
A131: № 229 Сбор.рец. На прод-ию для обуч. Во всех образ.учреж-Дели 2017 | B131: Рыба, тушенная в томате с овощами | C131: 50/50 | D131: 9.05 | E131: 6.09 | F131: 3.80 | G131: 105.00 | H131: 0.05 | I131: 3.73 | J131: 5.82 | K131: 2.52 | L131: 69.07 | M131: 162.19 | N131: 48.53 | O131: 0.85
A132: № 312 Сбор.рец. На прод-ию для обуч. Во всех образ.учреж-Дели -2017 | B132: Пюре картофельное с маслом сливочным | C132: 150/3 | D132: 3.08 | E132: 6.25 | F132: 20.47 | G132: 150.45 | H132: 0.14 | I132: 18.16 | J132: 8.00 | K132: 0.20 | L132: 37.46 | M132: 87.20 | N132: 27.75 | O132: 1.01
A133: №342 Сбор.рец. На прод-ию для обуч. Во всех образ.учреж-Дели 2017 | B133: Компот из свежих яблок (75С) | C133: 200 | D133: 0.16 | E133: 0.16 | F133: 17.90 | G133: 74.60 | H133: 0.01 | I133: 0.90 | J133: 0.00 | K133: 0.08 | L133: 13.88 | M133: 4.40 | N133: 5.14 | O133: 0.92
A134: Хим.состав и калорийность российских продуктов питания табл 6 стр 134 , 2012 Дели + | B134: Хлеб пшеничный | C134: 35 | D134: 2.66 | E134: 0.28 | F134: 17.22 | G134: 82.25 | H134: 0.04 | I134: 0.00 | J134: 0.00 | K134: 0.39 | L134: 7.00 | M134: 22.75 | N134: 4.90 | O134: 0.39
B135: Итого: | C135: 548 | D135: =SUM(D130:D134) -> 15.79 | E135: =SUM(E130:E134) -> 16.39 | F135: 64.34 | G135: 467.98 | H135: 0.25 | I135: 26.78 | J135: 13.82 | K135: 4.81 | L135: 148.68 | M135: 300.91 | N135: 98.74 | O135: 3.96 | P135: 20%
B137: 3 день
A138: Хим.состав и калорийность российских продуктов питания табл 9 стр 184 , 2012 Дели + | B138: Плоды и ягоды свежие (яблоки) | C138: 100 | D138: 0.40 | E138: 0.40 | F138: 9.80 | G138: 47.00 | H138: 0.03 | I138: 10.00 | K138: 0.20 | L138: 16.00 | M138: 11.00 | N138: 9.00 | O138: 2.20
A139: № 265 Сбор.рец. На прод-ию для обуч. Во всех образ.учреж-Дели -2017 | B139: Плов из говядины с рисовой крупой | C139: 50/150 | D139: 15.95 | E139: 19.55 | F139: 39.75 | G139: 408.42 | H139: 0.04 | I139: 0.27 | J139: 0.00 | K139: 4.23 | L139: 89.33 | M139: 176.23 | N139: 40.58 | O139: 2.64
A140: № 376 Сбор.рец. На прод-ию для обуч. Во всех образ.учреж-Дели 2017 | B140: Чай с сахаром | C140: 190/10 | D140: 0.07 | E140: 0.02 | F140: 10.01 | G140: 40.00 | H140: 0.00 | I140: 0.03 | J140: 0.00 | K140: 0.00 | L140: 10.95 | M140: 2.80 | N140: 1.40 | O140: 0.27
A141: Хим.состав и калорийность российских продуктов питания табл 6 стр 134 , 2012 Дели + | B141: Хлеб пшеничный | C141: 25 | D141: 1.90 | E141: 0.20 | F141: 12.30 | G141: 58.75 | H141: 0.03 | I141: 0.00 | J141: 0.00 | K141: 0.28 | L141: 5.00 | M141: 16.25 | N141: 3.50 | O141: 0.28
A142: Хим.состав и калорийность российских продуктов питания,табл 6, стр 144 , 2012 Дели + | B142: Хлеб ржаной | C142: 20 | D142: 1.32 | E142: 0.24 | F142: 7.92 | G142: 39.60 | H142: 0.03 | I142: 0.00 | J142: 0.00 | K142: 0.28 | L142: 5.80 | M142: 30.00 | N142: 9.40 | O142: 0.78
B143: Итого: | C143: 545 | D143: =SUM(D138:D142) -> 19.64 | E143: =SUM(E138:E142) -> 20.41 | F143: 79.78 | G143: 593.77 | H143: 0.13 | I143: 10.30 | J143: 0.00 | K143: 4.98 | L143: 127.08 | M143: 236.28 | N143: 63.88 | O143: 6.16 | P143: 25%
B146: 4 день
A147: ТТК | B147: Салат из моркови | C147: 60 | D147: 0.74 | E147: 0.06 | F147: 9.98 | G147: 49.02 | H147: 0.03 | I147: 2.02 | J147: 0.00 | K147: 8.04 | L147: 15.46 | M147: 31.66 | N147: 21.63 | O147: 0.40
A148: ТТК | B148: Котлета из мяса птицы с макаронными изделиями отварными, с маслом сливочным | C148: 75/150/5 | D148: 11.45 | E148: 12.46 | F148: 31.32 | G148: 289.95 | H148: 0.10 | I148: 0.50 | J148: 23.90 | K148: 4.80 | L148: 31.70 | M148: 147.63 | N148: 38.18 | O148: 2.08
A149: № 382 Сбор.рец. На прод-ию для обуч. Во всех образ.учреж-Дели 2017 | B149: Какао с молоком | C149: 200 | D149: 1.58 | E149: 3.54 | F149: 7.60 | G149: 78.60 | H149: 0.06 | I149: 1.59 | J149: 24.40 | K149: 0.00 | L149: 151.92 | M149: 124.56 | N149: 21.34 | O149: 0.45
A150: Хим.состав и калорийность российских продуктов питания табл 6 стр 134 , 2012 Дели + | B150: Хлеб пшеничный | C150: 30 | D150: 2.28 | E150: 0.24 | F150: 14.76 | G150: 70.50 | H150: 0.03 | I150: 0.00 | J150: 0.00 | K150: 0.33 | L150: 6.00 | M150: 19.50 | N150: 4.20 | O150: 0.33
B151: Итого: | C151: 520 | D151: =SUM(D147:D150) -> 16.05 | E151: 16.30 | F151: 63.66 | G151: 488.07 | H151: 0.22 | I151: 4.10 | J151: 48.30 | K151: 13.17 | L151: 205.07 | M151: 323.35 | N151: 85.34 | O151: 3.25 | P151: 20%
B153: 5 день
A154: Хим.состав и калорийность российских продуктов питания табл 9 стр 184 , 2012 Дели + | B154: Плоды и ягоды свежие (апельсины) | C154: 180 | D154: 1.62 | E154: 0.36 | F154: 14.58 | G154: 77.40 | H154: 0.07 | I154: 108.00 | K154: 0.36 | L154: 61.20 | M154: 41.40 | N154: 23.40 | O154: 0.54
A155: № 143,241 Сбор.рец. На прод-ию для обуч. Во всех образ.учреж-Дели 2017 | B155: Овощи тушеные с мясом | C155: 50/150 | D155: 12.48 | E155: 15.68 | F155: 19.34 | G155: 271.50 | H155: 0.12 | I155: 18.77 | J155: 39.00 | K155: 4.67 | L155: 89.15 | M155: 148.63 | N155: 39.69 | O155: 2.23
A156: №349 Сбор.рец. На прод-ию для обуч. Во всех образ.учреж-Дели 2017 | B156: Компот из сухофруктов (75С) | C156: 200 | D156: 0.66 | E156: 0.09 | F156: 22.03 | G156: 92.80 | H156: 0.02 | I156: 0.73 | J156: 0.00 | K156: 0.51 | L156: 32.18 | M156: 23.44 | N156: 17.46 | O156: 0.67
A157: Хим.состав и калорийность российских продуктов питания,табл 6, стр 144 , 2012 Дели + | B157: Хлеб ржаной | C157: 20 | D157: 1.32 | E157: 0.24 | F157: 7.92 | G157: 39.60 | H157: 0.03 | I157: 0.00 | J157: 0.00 | K157: 0.28 | L157: 5.80 | M157: 30.00 | N157: 9.40 | O157: 0.78
B158: Итого: | C158: 600 | D158: =SUM(D154:D157) -> 16.08 | E158: =SUM(E154:E157) -> 16.37 | F158: 63.87 | G158: 481.30 | H158: 0.24 | I158: 127.49 | J158: 39.00 | K158: 5.82 | L158: 188.33 | M158: 243.47 | N158: 89.95 | O158: 4.21 | P158: 20%
B160: 6 день
A161: № 47 Сбор.рец. На прод-ию для обуч. Во всех образ.учреж-Дели -2017 | B161: Салат из свежей капусты с морковью | C161: 80 | D161: 1.05 | E161: 2.60 | F161: 5.17 | G161: 48.32 | H161: 0.02 | I161: 13.68 | J161: 0.00 | K161: 6.71 | L161: 19.98 | M161: 22.65 | N161: 12.07 | O161: 0.37
A162: ТТК | B162: Котлеты "Аппетитные" с кашей гречневой рассыпчатой с маслом сливочным | C162: 75/150/3 | D162: 15.16 | E162: 16.19 | F162: 44.63 | G162: 386.76 | H162: 0.26 | I162: 1.49 | J162: 71.98 | K162: 1.73 | L162: 41.59 | M162: 320.78 | N162: 154.60 | O162: 6.23
A163: № 377 Сбор.рец. На прод-ию для обуч. Во всех образ.учреж-Дели 2017 | B163: Чай с сахаром, с лимоном | C163: 185/10/5 | D163: 0.11 | E163: 0.02 | F163: 10.15 | G163: 41.32 | H163: -0.00 | I163: 2.03 | J163: 0.00 | K163: 0.01 | L163: 13.25 | M163: 3.96 | N163: 2.16 | O163: 0.33
A164: Хим.состав и калорийность российских продуктов питания табл 6 стр 134 , 2012 Дели + | B164: Хлеб пшеничный | C164: 45 | D164: 3.42 | E164: 0.36 | F164: 22.14 | G164: 105.75 | H164: 0.05 | I164: 0.00 | J164: 0.00 | K164: 0.50 | L164: 9.00 | M164: 29.25 | N164: 6.30 | O164: 0.50
B165: Итого: | C165: 553 | D165: =SUM(D161:D164) -> 19.74 | E165: =SUM(E161:E164) -> 19.17 | F165: 82.09 | G165: 582.15 | H165: 0.33 | I165: 17.20 | J165: 71.98 | K165: 8.94 | L165: 83.82 | M165: 376.63 | N165: 175.14 | O165: 7.43 | P165: 25%
B166: Итого за 6 дней 2 недели: | C166: =C126+'Меню младшие 1-4 кл'!C143+C135+C151+C158+C165 -> 3266 | D166: =D126+'Меню младшие 1-4 кл'!D143+D135+D151+D158+D165 -> 107.4305333 | E166: =E126+'Меню младшие 1-4 кл'!E143+E135+E151+E158+E165 -> 107.4183 | F166: =F126+'Меню младшие 1-4 кл'!F143+F135+F151+F158+F165 -> 433.3228 | G166: =G126+'Меню младшие 1-4 кл'!G143+G135+G151+G158+G165 -> 3172.016667 | H166: =H126+'Меню младшие 1-4 кл'!H143+H135+H151+H158+H165 -> 1.38215 | I166: =I126+'Меню младшие 1-4 кл'!I143+I135+I151+I158+I165 -> 236.9119952 | J166: =J126+'Меню младшие 1-4 кл'!J143+J135+J151+J158+J165 -> 240.6191667 | K166: =K126+'Меню младшие 1-4 кл'!K143+K135+K151+K158+K165 -> 40.43509524 | L166: =L126+'Меню младшие 1-4 кл'!L143+L135+L151+L158+L165 -> 1124.872843 | M166: =M126+'Меню младшие 1-4 кл'!M143+M135+M151+M158+M165 -> 1821.090305 | N166: =N126+'Меню младшие 1-4 кл'!N143+N135+N151+N158+N165 -> 580.2471548 | O166: =O126+'Меню младшие 1-4 кл'!O143+O135+O151+O158+O165 -> 28.0093619
B167: ВСЕГО за 12 дней: | C167: =C105+C166 -> 6507 | D167: 214.8806333 | E167: 214.008 | F167: 892.5948 | G167: 6394.21 | H167: 2.798083333 | I167: 301.2170952 | J167: 519.6391667 | K167: 68.03659524 | L167: 2337.190343 | M167: 3905.373455 | N167: 1167.765955 | O167: 59.9608619
B168: В среднем на 1 учащегося в день: | C168: =C167/12 -> 542 | D168: =D167/12 -> 17.91 | E168: 17.83 | F168: 74.38 | G168: 532.85 | H168: 0.23 | I168: 25.10 | J168: 43.30 | K168: 5.67 | L168: 194.77 | M168: 325.45 | N168: 97.31 | O168: 5.00 | P168: 20-25%

Sheet Меню сокращенное
A1: ПРИМЕРНОЕ ДВУХНЕДЕЛЬНОЕ МЕНЮ ДЛЯ ОБУЧАЮЩИХСЯ В ОБЩЕОБРАЗОВАТЕЛЬНЫХ ОРГАНИЗАЦИЯХ (сезон осенне-зимний)
A3: ГОРЯЧИЙ ЗАВТРАК | I3: Мл.кл 74,77 рублей
A4: 1-ая неделя
A5: 1 день | C5: 2 день | E5: 3 день | G5: 4 день | I5: 5 день | K5: 6 день
A6: Наименование блюд | B6: Выход,г | C6: Наименование блюд | D6: Выход,г | E6: Наименование блюд | F6: Выход,г | G6: Наименование блюд | H6: Выход,г | I6: Наименование блюд | J6: Выход,г | K6: Наименование блюд | L6: Выход,г
B7: 7-11 лет | D7: 7-11 лет | F7: 7-11 лет | H7: 7-11 лет | J7: 7-11 лет | L7: 7-11 лет
A8: Салат из моркови с яблоками | B8: 60 | C8: Плоды и ягоды свежие (яблоки) | D8: 100 | E8: Сыр порционно | F8: 10 | G8: Свекла отварная дольками | H8: 60 | I8: Сыр порционно | J8: 15 | K8: Салат из свежей капусты с морковью | L8: 80
A9: Котлета из мяса птицы | B9: 75 | C9: Сырник из творога мл.кл | D9: 60 | E9: Гуляш из говядины | F9: 50/50 | G9: Птица запеченная | H9: 100 | I9: Тефтели мясные в сметанно-томатном соусе | J9: 60/40 | K9: Биточки рыбные(минтай) мл.кл./ Биточки рыбные ст.кл. | L9: 75
A10: Макаронные изделия с маслом сливочным | B10: 150/5 | C10: Каша вязкая "Дружба" молочная с маслом сливочным | D10: 150/5 | E10: Каша гречневая рассыпчатая | F10: 150 | G10: Пюре картофельное с маслом сливочным | H10: 150/3 | I10: Макаронные изделия отварные с маслом сливочным мл.кл. /Макаронные изделия отварные ст.кл. | J10: 180/5 | K10: Рис отварный рассыпчатый с маслом сливочным | L10: 150/3
A11: Компот из сухофруктов (75С) (сахара 10г) | B11: 200 | C11: Кофейный напиток с молоком | D11: 200 | E11: Чай с сахаром,с лимоном | F11: 185/10/5 | G11: Компот из сухофруктов (75С) (сахара 10г) | H11: 200 | I11: Напиток из свежих фруктов (75С) (сахар 20г) | J11: 200 | K11: Чай с сахаром,с лимоном | L11: 185/10/5
A12: Хлеб пшеничный | B12: нет | C12: Хлеб пшеничный | D12: нет | E12: Хлеб пшеничный | F12: нет | G12: Хлеб пшеничный | H12: 30 | I12: Хлеб пшеничный | J12: 45
A13: Хлеб ржаной | B13: 30 | C13: Хлеб ржаной | D13: 30 | E13: Хлеб ржаной | F13: 50 | G13: Хлеб ржаной | H13: 40 | I13: Хлеб ржаной | J13: нет | K13: Хлеб ржаной | L13: 30
A14: Итого: | B14: 520 | C14: Итого: | D14: 545 | E14: Итого: | F14: 510 | G14: Итого: | H14: 583 | I14: Итого: | J14: 545 | K14: Итого: | L14: 538
A15: Белки,г | B15: 14.730 | D15: 16.100 | F15: 20.200 | H15: 20.260 | J15: 20.090 | L15: 16.080
A16: Жиры,г | B16: 15.920 | D16: 15.290 | F16: 20.360 | H16: 19.550 | J16: 20.080 | L16: 15.390
A17: Углеводы,г | B17: 70.350 | D17: 67.080 | F17: 79.970 | H17: 87.630 | J17: 83.920 | L17: 70.320
A18: ЭЦ,ккал | B18: 493.060 | D18: 491.550 | F18: 609.650 | H18: 613.750 | J18: 560.840 | L18: 453.340
A20: 2-ая неделя
A21: 1 день | C21: 2 день | E21: 3 день | G21: 4 день | I21: 5 день | K21: 6 день
A22: Наименование блюд | B22: Выход,г | C22: Наименование блюд | D22: Выход,г | E22: Наименование блюд | F22: Выход,г | G22: Наименование блюд | H22: Выход,г | I22: Наименование блюд | J22: Выход,г | K22: Наименование блюд | L22: Выход,г
B23: 7-11 лет | D23: 7-11 лет | F23: 7-11 лет | H23: 7-11 лет | J23: 7-11 лет | L23: 7-11 лет
C24: Салат из отварной свеклы | D24: 60 | E24: Плоды и ягоды свежие (яблоки) | F24: 100 | G24: Салат из моркови | H24: 60 | I24: Плоды и ягоды свежие (апельсин) | J24: 180 | K24: Салат из свежей капусты с морковью | L24: 80
A25: Сырник из творога | B25: 60 | C25: Рыба, тушеная в томате с овощами | D25: 50/50 | E25: Плов из говядины с рисовой крупой | F25: 50/150 | G25: Котлета из мяса птицы | H25: 75 | I25: Овощи тушеные с мясом | J25: 50/150 | K25: Котлеты "Аппетитные" | L25: 75
A26: Каша пшенная молочная с маслом сливочным мл.кл. /Каша пшенная молочная ст.кл. | B26: 180/5 | C26: Пюре картофельное с маслом сливочным | D26: 150/3 | G26: Макаронные изделия отварные с маслом сливочным мл.кл. /макаронные изделия отварные ст.кл. | H26: 150/5 | K26: Каша гречневая рассыпчатая с маслом сливочным | L26: 150/3
A27: Чай "Витаминный" с шиповником | B27: 185/10/5 | C27: Компот из свежих яблок (75С)(сахара 10г) | D27: 200 | E27: Чай с сахаром | F27: 190/10 | G27: Какао с молоком (сахар 10г) /Чай "Витаминный" с шиповником ст.кл. | H27: 200 | I27: Компот из сухофруктов (75С) (сахара 10г) | J27: 200 | K27: Чай с сахаром,с лимоном | L27: 185/10/5
A28: Хлеб пшеничный | B28: 25 | C28: Хлеб пшеничный | D28: 35 | E28: Хлеб пшеничный | F28: 25 | G28: Хлеб пшеничный | H28: 30 | I28: Хлеб пшеничный | J28: 20 | K28: Хлеб пшеничный | L28: 45
A29: Хлеб ржаной | B29: 30 | C29: Хлеб ржаной | D29: нет | E29: Хлеб ржаной | F29: 20 | G29: Хлеб ржаной | H29: нет | I29: Хлеб ржаной | J29: нет | K29: Хлеб ржаной | L29: нет
A30: Итого: | B30: 500 | C30: Итого: | D30: 548 | E30: Итого: | F30: 545 | G30: Итого: | H30: 520 | I30: Итого: | J30: 600 | K30: Итого: | L30: 553
A31: Белки,г | B31: 20.140 | D31: 15.790 | F31: 19.640 | H31: 16.050 | J31: 16.080 | L31: 19.740
A32: Жиры,г | B32: 18.780 | D32: 16.390 | F32: 20.410 | H32: 16.300 | J32: 16.370 | L32: 19.170
A33: Углеводы,г | B33: 79.590 | D33: 64.340 | F33: 79.780 | H33: 63.660 | J33: 63.870 | L33: 82.090
A34: ЭЦ,ккал | B34: 558.750 | D34: 467.980 | F34: 593.770 | H34: 488.070 | J34: 481.300 | L34: 582.150
